bitfinex/quotes_SOLUSD_20250522
["timestamp","ask_amount","ask_price","bid_price","bid_amount"]
[1747895773099,19.91918502,175.71,175.6,46.8706]
[1747895773100,0.14216157,175.7,175.63,26.0]
[1747895773496,0.14216157,175.7,175.6,6.4106]
[1747895773697,0.14216157,175.7,175.63,26.0]
[1747895774214,0.14216157,175.68,175.61,26.0]
[1747895774572,19.9237206,175.67,175.61,26.0]
[1747895778816,19.9237206,175.67,175.57,23.68653297]
[1747895778817,0.14216157,175.66,175.6,26.0]
[1747895779280,0.14216157,175.66,175.57,13.00797529]
[1747895779696,0.14216157,175.66,175.6,26.0]
[1747895780098,5.83432914,175.68,175.6,26.0]
[1747895780999,20.06474808,175.68,175.6,26.0]
[1747895782102,20.06701639,175.66,175.6,26.0]
[1747895782417,1.5878,175.65,175.53,84.5962]
[1747895782711,0.14216157,175.64,175.53,1.5962]
[1747895782910,34.14,175.63,175.53,1.5962]
[1747895783281,34.14,175.63,175.54,26.0]
[1747895783498,34.14,175.63,175.55,26.0]
[1747895784279,0.14216157,175.61,175.53,1.5962]
[1747895785109,0.14216157,175.61,175.54,26.0]
[1747895785493,34.14,175.63,175.56,26.0]
[1747895785494,39.83387611,175.63,175.56,26.0]
[1747895786294,39.83387611,175.63,175.55,5.69619921]
[1747895786498,39.83387611,175.63,175.58,26.0]
[1747895786694,0.14216157,175.62,175.53,84.5962]
[1747895786893,0.14216157,175.62,175.54,26.0]
[1747895787213,0.14216157,175.62,175.55,26.0]
[1747895787513,34.14,175.63,175.56,26.0]
[1747895788412,34.14,175.63,175.6,26.0]
[1747895788712,46.17277277,175.67,175.6,26.0]
[1747895789902,40.48,175.67,175.61,18.64964886]
[1747895790090,151.12635342,175.74,175.63,18.64964886]
[1747895790091,34.16,175.71,175.63,18.64964886]
[1747895790487,40.5,175.72,175.63,18.64964886]
[1747895791782,40.5,175.72,175.64,5.6934639]
[1747895791987,40.5,175.72,175.66,26.0]
[1747895792197,46.19106627,175.72,175.66,26.0]
[1747895792811,40.5,175.72,175.66,26.0]
[1747895793291,5.69064623,175.73,175.66,26.0]
[1747895794014,5.69064623,175.73,175.68,26.0]
[1747895794594,39.849253,175.77,175.69,26.0]
[1747895796406,39.849253,175.77,175.7,26.0]
[1747895797108,5.689253,175.77,175.7,26.0]
[1747895797293,5.68894117,175.78,175.7,26.0]
[1747895797492,5.68894117,175.78,175.74,26.0]
[1747895798293,5.68894117,175.78,175.72,26.0]
[1747895799399,19.91126452,175.78,175.72,26.0]
[1747895800318,19.91126452,175.78,175.71,26.0]
[1747895803626,0.14216157,175.77,175.71,26.0]
[1747895804817,5.68957669,175.76,175.71,26.0]
[1747895805199,0.14216157,175.75,175.71,26.0]
[1747895805507,35.83836157,175.75,175.64,84.6232]
[1747895805711,35.83836157,175.75,175.64,1.6232]
[1747895805899,35.83836157,175.75,175.66,26.0]
[1747895806999,19.91578467,175.74,175.66,26.0]
[1747895807927,19.91578467,175.74,175.68,26.0]
[1747895808127,5.69022419,175.74,175.68,26.0]
[1747895809129,5.69022419,175.74,175.66,18.64964886]
[1747895809695,0.14216157,175.73,175.65,26.0]
[1747895811129,5.69087184,175.72,175.65,26.0]
[1747895812231,19.91805144,175.72,175.65,26.0]
[1747895814231,0.14216157,175.71,175.63,0.90499997]
[1747895816136,19.92031871,175.7,175.63,0.90499997]
[1747895818039,19.92031871,175.7,175.62,26.0]
[1747895818221,0.14216157,175.71,175.62,26.0]
[1747895818222,19.92258651,175.68,175.62,26.0]
[1747895819111,0.14216157,175.67,175.62,26.0]
[1747895819735,19.92258651,175.68,175.62,26.0]
[1747895819931,5.69216757,175.68,175.64,26.0]
[1747895820128,5.69216757,175.68,175.63,26.0]
[1747895820435,6.2899,175.76,175.64,18.64964886]
[1747895820640,34.28216157,175.78,175.69,26.0]
[1747895821936,0.14216157,175.76,175.66,26.0]
[1747895823844,19.91465148,175.75,175.66,26.0]
[1747895824139,19.91465148,175.75,175.67,26.0]
[1747895825618,19.91465148,175.75,175.66,26.0]
[1747895826552,19.91465148,175.75,175.66,31.69279343]
[1747895827056,19.91465148,175.75,175.66,26.0]
[1747895827357,5.68990042,175.75,175.66,31.69281295]
[1747895827557,5.68990042,175.75,175.67,18.64964886]
[1747895828130,5.68957669,175.76,175.67,24.34198378]
[1747895829052,19.91351842,175.76,175.67,18.64964886]
[1747895829242,0.14216157,175.75,175.65,1.6321]
[1747895829433,0.14216157,175.75,175.65,27.6321]
[1747895830034,0.14216157,175.73,175.65,27.6321]
[1747895830234,0.14216157,175.73,175.6,97.80383018]
[1747895830526,0.14216157,175.71,175.6,1.5931]
[1747895830745,34.28216157,175.71,175.62,26.0]
[1747895831054,34.28216157,175.71,175.63,26.0]
[1747895832141,5.69151963,175.7,175.63,26.0]
[1747895832943,5.69151963,175.7,175.64,26.0]
[1747895833262,5.69151963,175.7,175.6,1.5931]
[1747895833263,0.14216157,175.69,175.6,1.5931]
[1747895833834,0.14216157,175.69,175.59,6.2654]
[1747895834457,0.14216157,175.69,175.59,26.0]
[1747895834458,19.92258651,175.68,175.59,26.0]
[1747895835037,0.14216157,175.67,175.59,26.0]
[1747895835456,19.92258651,175.68,175.59,26.0]
[1747895836136,0.14216157,175.67,175.59,26.0]
[1747895836562,5.69281566,175.66,175.59,26.0]
[1747895836949,5.69151963,175.7,175.62,26.0]
[1747895837962,19.92031871,175.7,175.63,26.0]
[1747895838466,14.22879908,175.7,175.64,26.0]
[1747895838770,5.69119572,175.71,175.64,26.0]
[1747895839065,19.91918502,175.71,175.64,26.0]
[1747895840652,5.69119572,175.71,175.64,26.0]
[1747895842057,0.14216157,175.7,175.63,26.0]
[1747895844159,5.69184358,175.69,175.63,26.0]
[1747895844563,19.92145255,175.69,175.63,26.0]
[1747895845364,19.92145255,175.69,175.6,6.5858]
[1747895845775,5.69184358,175.69,175.6,30.93016147]
[1747895847071,5.69184358,175.69,175.6,25.23544886]
[1747895847265,19.92145255,175.69,175.6,30.93009833]
[1747895847491,19.92145255,175.69,175.6,24.34429833]
[1747895848049,5.69184358,175.69,175.6,24.34429833]
[1747895851180,5.69119572,175.71,175.61,18.64964886]
[1747895851366,5.69119572,175.71,175.63,18.64964886]
[1747895851991,5.69119572,175.71,175.63,101.64964886]
[1747895852286,60.23795206,175.73,175.66,26.0]
[1747895852287,11.85106961,175.73,175.66,26.0]
[1747895852809,17.54169879,175.73,175.66,26.0]
[1747895856483,11.85106961,175.73,175.66,26.0]
[1747895856881,5.69087184,175.72,175.66,26.0]
[1747895858081,5.69087184,175.72,175.64,94.90986474]
[1747895858275,11.85106961,175.73,175.67,26.0]
[1747895858995,5.69087184,175.72,175.67,26.0]
[1747895860279,5.69087184,175.72,175.64,94.90982365]
[1747895860806,5.69087184,175.72,175.64,89.2165]
[1747895860978,0.14216157,175.71,175.61,18.64964886]
[1747895861188,0.14216157,175.71,175.6,40.12]
[1747895861368,26.0,175.69,175.6,40.12]
[1747895861705,26.0,175.69,175.59,107.95364886]
[1747895862685,5.69216757,175.68,175.59,113.64869787]
[1747895862891,5.69216757,175.68,175.6,18.64964886]
[1747895863091,5.69151963,175.7,175.61,26.0]
[1747895863291,34.14,175.72,175.62,18.64964886]
[1747895864511,39.83088101,175.72,175.63,5.69378807]
[1747895864686,39.83088101,175.72,175.63,88.69378807]
[1747895864993,17.54161929,175.73,175.67,18.64964886]
[1747895866006,17.54161929,175.73,175.66,90.9591]
[1747895866974,17.54161929,175.73,175.67,18.64964886]
[1747895867376,17.54161929,175.73,175.66,90.9591]
[1747895868293,17.54161929,175.73,175.66,84.5746]
[1747895868480,0.14216157,175.72,175.66,83.0]
[1747895868793,34.28216157,175.72,175.66,83.0]
[1747895869185,34.28216157,175.72,175.62,89.0927]
[1747895869902,34.28216157,175.72,175.61,27.5265]
[1747895870086,34.28216157,175.72,175.61,1.5265]
[1747895870612,0.14216157,175.7,175.61,1.5265]
[1747895872723,5.69184358,175.69,175.61,1.5265]
[1747895873718,5.69184358,175.69,175.63,26.0]
[1747895874104,19.92145255,175.69,175.63,26.0]
[1747895877016,19.92145255,175.69,175.6,107.34408813]
[1747895877214,5.69184358,175.69,175.6,107.34408813]
[1747895877790,5.69087184,175.72,175.64,18.64964886]
[1747895879217,5.69087184,175.72,175.63,26.0]
[1747895879396,19.91805144,175.72,175.62,18.64964886]
[1747895879598,0.14216157,175.71,175.61,18.64964886]
[1747895879805,26.0,175.69,175.6,83.0]
[1747895880104,5.6934639,175.64,175.58,83.0]
[1747895880414,26.0,175.65,175.58,18.64964886]
[1747895880600,5.69216757,175.68,175.58,101.64964886]
[1747895880797,26.0,175.67,175.58,101.64964886]
[1747895881913,31.69252293,175.67,175.59,5.69508514]
[1747895882928,26.0,175.67,175.59,5.69508514]
[1747895883421,31.69252174,175.67,175.59,5.69508514]
[1747895884214,31.69252174,175.67,175.59,88.69508514]
[1747895885822,26.0,175.67,175.6,18.64964886]
[1747895886005,34.14,175.69,175.6,18.64964886]
[1747895886204,34.14,175.69,175.61,6.1344]
[1747895886404,5.69161116,175.7,175.61,6.1344]
[1747895887437,5.69161116,175.7,175.63,18.64964886]
[1747895887731,5.69161116,175.7,175.63,101.64964886]
[1747895888625,5.69161116,175.7,175.63,107.343162]
[1747895889624,13.41916961,175.73,175.63,107.343162]
[1747895889799,17.54170819,175.73,175.65,18.64964886]
[1747895890203,17.54170819,175.73,175.64,1.6521]
[1747895890630,31.76807818,175.73,175.64,1.6521]
[1747895890927,26.0,175.7,175.63,83.0]
[1747895892136,5.69184358,175.69,175.63,83.0]
[1747895893320,5.69184358,175.69,175.61,147.61838852]
[1747895893728,5.69184358,175.69,175.61,64.61838852]
[1747895893906,5.69184358,175.69,175.62,18.64964886]
[1747895894831,5.69184358,175.69,175.61,11.82873966]
[1747895896937,31.69156841,175.7,175.61,11.82873966]
[1747895897132,5.69094911,175.72,175.62,18.64964886]
[1747895897314,5.69094911,175.72,175.62,101.64964886]
[1747895898634,11.85106961,175.73,175.65,0.14216157]
[1747895898940,11.85106961,175.73,175.63,74.16]
[1747895899230,11.85106961,175.73,175.64,18.64964886]
[1747895899807,31.76809986,175.73,175.63,45.71370115]
[1747895900247,34.14,175.72,175.63,45.71370115]
[1747895900429,34.14,175.72,175.63,40.02]
[1747895900732,26.0,175.71,175.61,5.69415164]
[1747895901339,5.69151963,175.7,175.61,5.69415164]
[1747895901537,5.69151963,175.7,175.62,18.64964886]
[1747895901927,11.85106961,175.73,175.63,0.14216157]
[1747895902127,11.85106961,175.73,175.65,18.79181043]
[1747895903237,11.85106961,175.73,175.65,18.64964886]
[1747895903418,11.85106961,175.73,175.67,18.64964886]
[1747895903618,17.54164101,175.73,175.67,18.64964886]
[1747895903840,11.85106961,175.73,175.67,18.64964886]
[1747895905240,11.85106961,175.73,175.67,101.64964886]
[1747895905413,11.85106961,175.73,175.68,5.69216757]
[1747895905843,11.85106961,175.73,175.67,107.34208165]
[1747895906717,11.85106961,175.73,175.67,121.57331065]
[1747895906922,11.85106961,175.73,175.67,107.34208165]
[1747895908043,11.85106961,175.73,175.68,0.14216157]
[1747895908243,11.85106961,175.73,175.69,18.64964886]
[1747895908920,11.85106961,175.73,175.68,83.0]
[1747895909241,11.85106961,175.73,175.69,18.64964886]
[1747895909422,11.85106961,175.73,175.69,24.3413187]
[1747895911123,11.85106961,175.73,175.69,18.64964886]
[1747895912563,11.85106961,175.73,175.69,24.34147448]
[1747895914350,11.85106961,175.73,175.69,107.34147448]
[1747895915042,11.85106961,175.73,175.69,101.64964886]
[1747895915348,17.54165643,175.73,175.69,101.64964886]
[1747895915647,17.54165643,175.73,175.69,83.0]
[1747895918062,31.76802642,175.73,175.69,83.0]
[1747895918358,31.76802642,175.73,175.64,101.64964886]
[1747895919732,31.76802642,175.73,175.65,18.64964886]
[1747895919937,17.54165643,175.73,175.65,18.64964886]
[1747895920749,17.54165643,175.73,175.65,24.3427527]
[1747895921136,17.54165643,175.73,175.65,18.64964886]
[1747895923165,17.54165643,175.73,175.65,101.64964886]
[1747895925472,31.76802642,175.73,175.65,101.64964886]
[1747895926643,31.71105298,175.73,175.65,101.64964886]
[1747895927172,17.48468299,175.73,175.65,107.34271797]
[1747895929658,17.48468299,175.73,175.65,107.34275705]
[1747895930185,11.79409617,175.73,175.67,18.64964886]
[1747895930472,11.79409617,175.73,175.67,101.64964886]
[1747895931868,17.4846798,175.73,175.67,101.64964886]
[1747895932674,17.4846798,175.73,175.65,122.9]
[1747895932974,17.4846798,175.73,175.65,128.59309049]
[1747895933179,17.4846798,175.73,175.65,122.9]
[1747895933960,17.4846798,175.73,175.65,128.59309605]
[1747895934974,17.4846798,175.73,175.65,122.9]
[1747895935276,17.4846798,175.73,175.65,128.59311143]
[1747895936776,11.79409617,175.73,175.66,18.64964886]
[1747895937776,11.79409617,175.73,175.67,5.6924916]
[1747895938157,11.79409617,175.73,175.67,88.6924916]
[1747895939897,11.79409617,175.73,175.67,88.6924916]
[1747895940971,5.69029539,175.74,175.67,88.6924916]
[1747895943964,26.0,175.71,175.67,83.0]
[1747895944174,26.0,175.71,175.61,9.45067651]
[1747895944175,0.14216157,175.7,175.61,7.91937651]
[1747895944485,0.14216157,175.68,175.61,7.91937651]
[1747895944781,34.14,175.67,175.59,6.1949974]
[1747895945184,34.14,175.67,175.59,0.5]
[1747895946183,5.69281566,175.66,175.59,0.5]
[1747895947976,5.69281566,175.66,175.59,6.19501935]
[1747895948172,39.83257497,175.67,175.6,18.64964886]
[1747895948581,39.83257497,175.67,175.59,0.5]
[1747895948883,54.06380397,175.67,175.59,0.5]
[1747895949766,54.06380397,175.67,175.59,6.19502622]
[1747895950176,54.06380397,175.67,175.59,0.5]
[1747895950397,39.83257497,175.67,175.59,6.19508156]
[1747895950791,34.14,175.67,175.6,18.64964886]
[1747895950977,5.69226292,175.68,175.6,18.64964886]
[1747895952693,5.69226292,175.68,175.61,5.69443653]
[1747895953986,5.69193231,175.69,175.61,5.69443653]
[1747895954204,5.69193231,175.69,175.62,18.64964886]
[1747895954494,5.69141917,175.71,175.62,101.64964886]
[1747895954683,5.69141917,175.71,175.63,5.69378807]
[1747895955394,5.69141917,175.71,175.62,107.3436827]
[1747895956575,35.6992,175.72,175.62,121.57896341]
[1747895956776,26.0,175.74,175.65,18.64964886]
[1747895956981,49.9145578,175.76,175.65,18.64964886]
[1747895956982,1.5504,175.76,175.65,101.64964886]
[1747895957873,5.68990042,175.75,175.65,101.64964886]
[1747895958381,5.68990042,175.75,175.66,5.69281566]
[1747895962398,5.68990042,175.75,175.66,88.69281566]
[1747895963374,7.24001714,175.76,175.66,88.69281566]
[1747895965296,7.24001714,175.76,175.66,102.92485482]
[1747895965599,7.24001714,175.76,175.66,88.69281566]
[1747895965796,7.24001714,175.76,175.67,18.64964886]
[1747895966801,21.46395887,175.76,175.67,24.34190263]
[1747895968283,21.46395887,175.76,175.67,107.34190263]
[1747895970603,7.24001714,175.76,175.67,107.34190263]
[1747895972409,5.68892934,175.78,175.7,18.64964886]
[1747895972703,5.68892934,175.78,175.7,101.64964886]
[1747895973714,5.68892934,175.78,175.71,5.69119572]
[1747895975004,1.6577,175.8,175.72,18.64964886]
[1747895975605,5.68805467,175.81,175.72,101.64964886]
[1747895976808,5.68805467,175.81,175.74,18.64964886]
[1747895977591,5.68805467,175.81,175.74,23.40849781]
[1747895977900,5.68805467,175.81,175.74,29.09841673]
[1747895979810,31.6877233,175.82,175.74,29.09841673]
[1747895980121,1.6377,175.84,175.74,29.09841673]
[1747895980122,227.23448911,175.88,175.74,112.09841673]
[1747895980293,15.72848911,175.88,175.76,18.64964886]
[1747895980492,72.2313,175.87,175.76,18.64964886]
[1747895980688,72.2313,175.87,175.78,18.64964886]
[1747895980897,19.90219491,175.86,175.77,95.11875601]
[1747895981098,19.90219491,175.86,175.78,12.11875601]
[1747895983327,5.6863414,175.86,175.78,17.80754794]
[1747895983833,5.6863414,175.86,175.78,12.11875601]
[1747895984194,5.6863414,175.86,175.79,18.64964886]
[1747895985336,26.0,175.82,175.78,12.11875601]
[1747895986098,5.68795859,175.81,175.78,12.11875601]
[1747895987392,5.68779403,175.82,175.78,12.11875601]
[1747895988422,5.6873116,175.83,175.78,12.11875601]
[1747895989824,26.0,175.82,175.78,12.11875601]
[1747895990309,5.68795859,175.81,175.78,12.11875601]
[1747895992532,19.90559061,175.83,175.78,12.11875601]
[1747895993328,34.12,175.82,175.78,12.11875601]
[1747895994013,5.6873116,175.83,175.78,12.11875601]
[1747895994201,32.3346,175.84,175.78,12.11875601]
[1747895994202,31.68701444,175.84,175.78,12.11875601]
[1747896001142,5.6863414,175.86,175.78,17.80761346]
[1747896001315,5.6863414,175.86,175.78,12.11875601]
[1747896002025,19.90219491,175.86,175.78,12.11875601]
[1747896003316,5.6863414,175.86,175.78,17.80752211]
[1747896004016,5.6863414,175.86,175.78,12.11875601]
[1747896004437,5.6863414,175.86,175.78,17.80754495]
[1747896005228,5.6863414,175.86,175.78,12.11875601]
[1747896005642,19.90219491,175.86,175.78,12.11875601]
[1747896007958,19.90219491,175.86,175.79,18.64964886]
[1747896007959,5.6863414,175.86,175.79,18.64964886]
[1747896008341,5.68569479,175.88,175.79,18.64964886]
[1747896008645,5.68504832,175.9,175.79,133.33794846]
[1747896008945,5.68504832,175.9,175.8,6.6407]
[1747896009545,1.5214,175.93,175.81,18.79181043]
[1747896009723,1.5214,175.93,175.81,101.79181043]
[1747896009724,7.20554356,175.93,175.81,101.79181043]
[1747896009923,47.41574079,175.93,175.81,101.64964886]
[1747896010748,47.41574079,175.93,175.83,18.64964886]
[1747896011125,26.0,175.9,175.81,24.33755017]
[1747896011329,26.0,175.9,175.82,18.64964886]
[1747896011631,60.12,175.9,175.8,6.6407]
[1747896011831,0.14216157,175.89,175.79,18.64964886]
[1747896012146,0.14216157,175.89,175.79,24.33823326]
[1747896012353,0.14216157,175.89,175.79,18.64964886]
[1747896012561,26.14216157,175.85,175.78,12.11875601]
[1747896012732,26.0,175.81,175.78,12.11875601]
[1747896012927,1.5819,175.8,175.78,12.11875601]
[1747896013119,1.5819,175.8,175.72,7.91937651]
[1747896013331,0.14216157,175.79,175.72,7.91937651]
[1747896013935,1.5819,175.8,175.72,7.91937651]
[1747896014641,31.68892934,175.78,175.66,6.4879]
[1747896014849,31.68892934,175.78,175.67,18.64964886]
[1747896015032,26.0,175.75,175.67,18.64964886]
[1747896015353,26.0,175.76,175.67,18.64964886]
[1747896016555,26.0,175.77,175.67,18.64964886]
[1747896016854,5.68957669,175.76,175.67,18.64964886]
[1747896017842,79.36924415,175.78,175.67,24.34209967]
[1747896018048,45.24924415,175.78,175.67,24.34209967]
[1747896021253,45.24924415,175.78,175.68,0.14216157]
[1747896021468,5.6886389,175.79,175.68,0.14216157]
[1747896021945,5.6886389,175.79,175.7,18.64964886]
[1747896022538,5.6886389,175.79,175.7,24.34086088]
[1747896023167,5.68825269,175.81,175.71,0.14216157]
[1747896023674,5.68825269,175.81,175.72,18.64964886]
[1747896024454,5.68763508,175.82,175.72,24.34026695]
[1747896025950,19.90672278,175.82,175.72,18.64964886]
[1747896026257,19.90672278,175.82,175.71,83.0]
[1747896026258,0.14216157,175.81,175.71,83.0]
[1747896027166,26.0,175.79,175.71,83.0]
[1747896028264,5.68892934,175.78,175.69,73.7]
[1747896029247,19.91125269,175.78,175.69,79.39177838]
[1747896029957,19.91125269,175.78,175.7,18.64964886]
[1747896030164,5.68892934,175.78,175.71,5.69119572]
[1747896030340,5.68892934,175.78,175.7,18.64964886]
[1747896031043,5.68892934,175.78,175.7,24.34100998]
[1747896032665,19.90898747,175.8,175.7,24.34100998]
[1747896033244,19.90898747,175.8,175.7,18.64964886]
[1747896033450,19.90898747,175.8,175.7,24.34109605]
[1747896034245,19.90898747,175.8,175.7,107.34109605]
[1747896037080,19.90898747,175.8,175.73,26.0]
[1747896041294,19.90898747,175.8,175.67,18.64964886]
[1747896041295,0.14216157,175.79,175.67,18.64964886]
[1747896041582,0.14216157,175.77,175.7,26.0]
[1747896042387,35.6803,175.78,175.7,26.0]
[1747896042953,0.14216157,175.77,175.7,26.0]
[1747896043153,19.9123855,175.77,175.7,26.0]
[1747896048003,5.689253,175.77,175.7,26.0]
[1747896048291,5.689253,175.77,175.74,26.0]
[1747896048961,5.689253,175.77,175.71,83.0]
[1747896049873,7.22931413,175.78,175.71,88.69112971]
[1747896050060,34.14,175.8,175.74,26.0]
[1747896050261,5.68795859,175.81,175.74,26.0]
[1747896051792,5.68698817,175.84,175.78,26.0]
[1747896056088,5.68698817,175.84,175.79,26.0]
[1747896056871,1.6535,175.87,175.81,26.0]
[1747896057211,5.68504832,175.9,175.81,26.0]
[1747896057493,5.68504832,175.9,175.82,26.0]
[1747896058791,5.68472514,175.91,175.82,31.68744325]
[1747896059896,5.68472514,175.91,175.82,26.0]
[1747896060604,5.68472514,175.91,175.86,26.0]
[1747896064481,5.68375582,175.94,175.86,26.0]
[1747896064871,5.68375582,175.94,175.9,26.0]
[1747896065238,12.65446982,175.96,175.9,26.0]
[1747896065370,5.68281361,175.97,175.9,26.0]
[1747896066099,5.68214103,175.99,175.92,26.0]
[1747896067400,5.68214103,175.99,175.93,26.0]
[1747896067992,5.68214103,175.99,175.92,26.0]
[1747896068192,5.68181818,176.0,175.92,26.0]
[1747896068391,19.88636363,176.0,175.92,26.0]
[1747896069090,0.14216157,175.99,175.88,2.84650613]
[1747896069405,0.14216157,175.99,175.86,10.78471818]
[1747896069601,6.3043,175.98,175.86,10.78471818]
[1747896069803,6.3043,175.98,175.89,26.0]
[1747896070102,5.68310979,175.96,175.89,26.0]
[1747896070680,19.89088428,175.96,175.87,18.64964886]
[1747896071007,26.0,175.95,175.86,16.4710021]
[1747896071199,26.0,175.95,175.87,18.64964886]
[1747896072115,5.68375582,175.94,175.87,18.64964886]
[1747896073612,19.89314538,175.94,175.86,93.78471818]
[1747896073910,6.0848,175.9,175.86,10.78471818]
[1747896074117,5.68569479,175.88,175.86,10.78471818]
[1747896075293,19.89993176,175.88,175.78,25.13774886]
[1747896075496,19.89993176,175.88,175.81,26.0]
[1747896075692,0.14216157,175.87,175.77,1.5308]
[1747896076001,1.65056157,175.87,175.79,26.0]
[1747896076211,19.90219491,175.86,175.79,26.0]
[1747896076589,5.6863414,175.86,175.79,26.0]
[1747896077101,5.6863414,175.86,175.8,26.0]
[1747896077705,19.90219491,175.86,175.79,26.0]
[1747896077906,19.90219491,175.86,175.8,26.0]
[1747896078126,5.6863414,175.86,175.8,26.0]
[1747896079035,45.64696157,175.9,175.81,18.64964886]
[1747896079036,5.68569479,175.88,175.81,18.64964886]
[1747896080113,5.68472514,175.91,175.81,24.33744259]
[1747896081049,5.68472514,175.91,175.84,26.0]
[1747896083755,5.68472514,175.91,175.85,18.64964886]
[1747896084424,5.68407889,175.93,175.85,24.33629904]
[1747896084747,5.68407889,175.93,175.85,18.64964886]
[1747896085641,5.68343279,175.95,175.89,18.64964886]
[1747896085841,5.68246391,175.98,175.89,18.64964886]
[1747896087254,14.20576252,175.99,175.92,26.0]
[1747896091023,0.14216157,175.98,175.9,26.0]
[1747896091858,14.20576252,175.99,175.9,26.0]
[1747896092348,5.68181818,176.0,175.95,18.64964886]
[1747896092726,5.68117259,176.02,175.95,18.64964886]
[1747896094373,5.68117259,176.02,175.95,101.64964886]
[1747896094881,5.68117259,176.02,175.98,26.0]
[1747896095181,5.68070105,176.04,175.98,26.0]
[1747896095382,19.88201893,176.04,175.98,26.0]
[1747896096290,19.88201893,176.04,175.95,44.64964886]
[1747896097079,5.68070105,176.04,175.98,26.0]
[1747896097272,5.67988185,176.06,175.99,18.64964886]
[1747896099276,5.67988185,176.06,175.99,24.33161789]
[1747896100679,5.67988185,176.06,175.99,18.64964886]
[1747896101260,5.67988185,176.06,175.99,24.33173726]
[1747896104586,5.67988185,176.06,175.99,18.64964886]
[1747896104788,5.67988185,176.06,176.0,26.0]
[1747896104975,19.87958649,176.06,176.0,26.0]
[1747896105583,19.87958649,176.06,175.97,83.0]
[1747896105779,19.87958649,176.06,175.98,26.0]
[1747896106385,5.67988185,176.06,175.99,18.64964886]
[1747896107676,5.67988185,176.06,175.99,24.33176742]
[1747896107865,5.67988185,176.06,175.99,18.64964886]
[1747896110407,5.67988185,176.06,176.0,26.0]
[1747896110584,34.08,176.05,175.96,26.0]
[1747896110784,19.88184503,176.04,175.96,26.0]
[1747896110984,1.6135,176.03,175.95,7.95246268]
[1747896111597,39.34,176.02,175.95,7.95246268]
[1747896113317,19.88523378,176.01,175.95,7.95246268]
[1747896114693,40.31126157,176.0,175.95,7.95246268]
[1747896115299,1.5825,175.99,175.95,7.95246268]
[1747896115503,1.5825,175.99,175.9,26.0]
[1747896116207,1.5825,175.99,175.94,26.0]
[1747896116922,5.68246391,175.98,175.94,26.0]
[1747896117615,5.68246391,175.98,175.91,26.0]
[1747896117817,5.68246391,175.98,175.92,26.0]
[1747896121529,5.68246391,175.98,175.93,26.0]
[1747896122635,5.68181818,176.0,175.93,26.0]
[1747896123341,19.88636363,176.0,175.93,26.0]
[1747896123520,19.88636363,176.0,175.89,109.27294886]
[1747896123720,19.88636363,176.0,175.92,26.0]
[1747896124817,19.88636363,176.0,175.93,26.0]
[1747896133553,34.21628098,176.0,175.94,14.32991735]
[1747896134537,34.21628098,176.0,175.95,14.32991735]
[1747896135963,19.88636363,176.0,175.96,14.32991735]
[1747896136142,19.88636363,176.0,175.97,14.32991735]
[1747896137768,0.14216157,175.99,175.9,83.0]
[1747896138070,14.32991735,175.98,175.92,14.32991735]
[1747896138235,14.47207892,175.99,175.94,14.32991735]
[1747896138432,48.29545453,176.0,175.95,14.32991735]
[1747896138433,34.21628098,176.0,175.95,14.32991735]
[1747896138632,34.1,175.99,175.95,14.32991735]
[1747896139238,5.68246391,175.98,175.95,14.32991735]
[1747896149859,5.68246391,175.98,175.96,14.32991735]
[1747896151668,5.68214103,175.99,175.96,14.32991735]
[1747896155460,19.8874936,175.99,175.95,14.32991735]
[1747896155856,19.8874936,175.99,175.94,14.32991735]
[1747896156848,19.8874936,175.99,175.95,14.32991735]
[1747896157482,5.68214103,175.99,175.97,14.32991735]
[1747896157645,5.68186033,176.0,175.98,14.32991735]
[1747896157852,5.68186033,176.0,175.99,14.32991735]
[1747896158367,39.78052715,176.04,175.99,14.32991735]
[1747896158564,39.78052715,176.04,176.01,14.32991735]
[1747896159376,5.68052715,176.04,176.01,14.32991735]
[1747896161569,5.68052715,176.04,176.02,14.32991735]
[1747896163972,13.97945847,176.05,176.03,14.32991735]
[1747896164153,8.2992229,176.05,176.04,14.32991735]
[1747896164756,13.97942738,176.05,176.04,14.32991735]
[1747896166685,13.97945756,176.05,176.03,26.0]
[1747896166983,39.22,176.1,176.04,14.32991735]
[1747896167272,39.22,176.1,176.08,14.32991735]